fUSD/lending_fUSD_20240929
["ID","MTS","AMOUNT","RATE_DAILY","PERIOD"]
[339495506,1727632240782,-500.0,0.00010958,2]
[339495508,1727632240790,-500.0,0.00010958,2]
[339495509,1727632240800,-500.0,0.00010958,2]
[339495511,1727632240809,-536.02079072,0.00010958,2]
[339495513,1727632240817,-500.0,0.00010958,2]
[339495515,1727632240827,-500.0,0.00010958,2]
[339495517,1727632240836,-500.0,0.00010958,2]
[339495519,1727632240844,-500.0,0.00010958,2]
[339495521,1727632240853,-500.0,0.00010958,2]
[339495523,1727632240862,-500.0,0.00010958,2]
[339495525,1727632240871,-443.87443798,0.00010958,2]
[339495527,1727632240880,-445.87837596,0.00010958,2]
[339495529,1727632240889,-500.0,0.00010958,2]
[339495531,1727632240898,-500.0,0.00010958,2]
[339495533,1727632240908,-500.0,0.00010958,2]
[339495535,1727632240917,-500.86979318,0.00010958,2]
[339495537,1727632240926,-500.0,0.00010958,2]
[339495539,1727632240935,-500.0,0.00010958,2]
[339495541,1727632240945,-500.0,0.00010958,2]
[339495542,1727632240954,-500.0,0.00010958,2]
[339495544,1727632240963,-500.0,0.00010958,2]
[339495546,1727632240972,-500.0,0.00010958,2]
[339495548,1727632240981,-500.0,0.00010958,2]
[339495550,1727632240990,-619.20339872,0.00010958,2]
[339495552,1727632240999,-500.0,0.00010958,2]
[339495554,1727632241009,-500.0,0.00010958,2]
[339495556,1727632241018,-500.0,0.00010958,2]
[339495558,1727632241027,-500.0,0.00010958,2]
[339495560,1727632241036,-228.35127266,0.00010958,2]
[339495562,1727632241045,-500.0,0.00010958,2]
[339495564,1727632241054,-500.0,0.00010958,2]
[339495566,1727632241063,-500.0,0.00010958,2]
[339495568,1727632241072,-500.0,0.00010958,2]
[339495570,1727632241081,-500.0,0.00010958,2]
[339495572,1727632241089,-500.0,0.00010958,2]
[339495573,1727632241098,-500.0,0.00010958,2]
[339495575,1727632241107,-500.0,0.00010958,2]
[339495577,1727632241116,-588.56,0.00010958,2]
[339495579,1727632241126,-419.27303701,0.00010958,2]
[339495581,1727632241135,-500.0,0.00010958,2]
[339495583,1727632241146,-592.43,0.00010958,2]
[339495585,1727632241156,-501.54310023,0.00010958,2]
[339495587,1727632241165,-500.0,0.00010958,2]
[339495589,1727632241174,-500.0,0.00010958,2]
[339495591,1727632241183,-500.0,0.00010958,2]
[339495593,1727632241192,-404.0858711,0.00010958,2]
[339495595,1727632241201,-500.0,0.00010958,2]
[339495597,1727632241210,-500.0,0.00010958,2]
[339495598,1727632241220,-235.53790195,0.00010958,2]
[339495600,1727632241229,-500.0,0.00010958,2]
[339495602,1727632241238,-500.0,0.00010958,2]
[339495604,1727632241247,-500.0,0.00010958,2]
[339495606,1727632241256,-500.0,0.00010958,2]
[339495608,1727632241265,-500.0,0.00010958,2]
[339495610,1727632241274,-500.0,0.00010958,2]
[339495612,1727632241283,-500.0,0.00010958,2]
[339495614,1727632241292,-500.0,0.00010958,2]
[339495616,1727632241301,-500.0,0.00010958,2]
[339495618,1727632241311,-500.0,0.00010958,2]
[339495620,1727632241321,-500.0,0.00010958,2]
[339495622,1727632241330,-500.0,0.00010958,2]
[339495624,1727632241339,-500.0,0.00010958,2]
[339495626,1727632241348,-500.0,0.00010958,2]
[339495628,1727632241357,-500.0,0.00010958,2]
[339495630,1727632241365,-500.0,0.00010958,2]
[339495631,1727632241374,-500.0,0.00010958,2]
[339495633,1727632241383,-500.44469808,0.00010958,2]
[339495635,1727632241392,-500.0,0.00010958,2]
[339495637,1727632241402,-500.0,0.00010958,2]
[339495639,1727632241411,-549.99840012,0.00010958,2]
[339495641,1727632241421,-500.0,0.00010958,2]
[339495643,1727632241431,-862.46,0.00010958,2]
[339495645,1727632241440,-500.0,0.00010958,2]
[339495667,1727632241639,-500.0,0.00010958,2]
[339495669,1727632241649,-500.0,0.00010958,2]
[339495671,1727632241659,-500.0,0.00010958,2]
[339495673,1727632241668,-500.0,0.00010958,2]
[339495675,1727632241679,-200.0,0.00010959,2]
[339495677,1727632241688,-150.64,0.00010959,2]
[339495679,1727632241698,-250.0,0.00010959,2]
[339495681,1727632241708,-1904.03,0.00010959,2]
[339495683,1727632241717,-165.69,0.00010959,2]
[339495685,1727632241728,-500.0,0.00010973,2]
[339495687,1727632241737,-217.34399043,0.00010986,2]
[339495689,1727632241747,-150.0,0.00010986,2]
[339495691,1727632241756,-2000.0,0.00010987,2]
[339495693,1727632241766,-200.0,0.00010987,2]
[339495695,1727632241776,-500.0,0.00010987,2]
[339495697,1727632241785,-500.0,0.00010987,2]
[339495698,1727632241794,-500.0,0.00010987,2]
[339495700,1727632241804,-587.72,0.00010987,2]
[339495702,1727632241813,-500.0,0.00010987,2]
[339495704,1727632241822,-500.0,0.00010987,2]
[339495706,1727632241832,-500.0,0.00010987,2]
[339495708,1727632241842,-500.0,0.00010987,2]
[339495710,1727632241851,-500.0,0.00010987,2]
[339495712,1727632241860,-500.0,0.00010987,2]
[339495714,1727632241869,-500.0,0.00010987,2]
[339495716,1727632241878,-500.0,0.00010987,2]
[339495718,1727632241888,-500.0,0.00010987,2]
[339495720,1727632241897,-500.0,0.00010987,2]
[339495722,1727632241908,-500.0,0.00010987,2]
[339495724,1727632241918,-503.27944894,0.00010987,2]
[339495726,1727632241927,-500.0,0.00010987,2]
[339495728,1727632241937,-261.641802,0.00010987,2]
[339495730,1727632241947,-545.889,0.00010989,2]
[339495732,1727632241956,-187.099,0.00010989,2]
[339495734,1727632241966,-500.0,0.00010992,2]
[339495736,1727632241975,-500.0,0.00010992,2]
[339495737,1727632241984,-500.0,0.00010992,2]
[339495739,1727632241993,-541.96505132,0.00010992,2]
[339495741,1727632242003,-500.0,0.00010993,2]
[339495743,1727632242013,-500.0,0.00010993,2]
[339495745,1727632242022,-500.0,0.00010993,2]
[339495747,1727632242032,-587.72,0.00010993,2]
[339495749,1727632242041,-587.72,0.00010993,2]
[339495751,1727632242051,-500.0,0.00010993,2]
[339495753,1727632242061,-500.0,0.00010993,2]
[339495755,1727632242070,-500.0,0.00010993,2]
[339495757,1727632242080,-500.0,0.00010993,2]
[339495759,1727632242089,-500.0,0.00010993,2]
[339495760,1727632242098,-184.64502068,0.00010993,2]
[339495762,1727632242107,-500.0,0.00010993,2]
[339495764,1727632242118,-500.0,0.00010993,2]
[339495766,1727632242129,-500.0,0.00010993,2]
[339495768,1727632242138,-500.0,0.00010993,2]
[339495770,1727632242152,-488.82825966,0.00010993,2]
[339495772,1727632242162,-500.0,0.00010994,2]
[339495774,1727632242172,-1026.32,0.00010994,2]
[339495776,1727632242181,-500.0,0.00010994,2]
[339495778,1727632242193,-500.0,0.00010994,2]
[339495780,1727632242203,-500.0,0.00010994,2]
[339495782,1727632242212,-500.0,0.00010994,2]
[339495784,1727632242223,-587.72,0.00010994,2]
[339495786,1727632242232,-587.72,0.00010994,2]
[339495788,1727632242242,-587.72,0.00010994,2]
[339495790,1727632242252,-500.0,0.00010994,2]
[339495792,1727632242262,-500.0,0.00010994,2]
[339495794,1727632242271,-500.0,0.00010994,2]
[339495796,1727632242281,-504.82286464,0.00010994,2]
[339495798,1727632242290,-500.0,0.00010994,2]
[339495800,1727632242300,-500.0,0.00010994,2]
[339495801,1727632242309,-503.1283526,0.00010994,2]
[339495803,1727632242319,-500.0,0.00010994,2]
[339495806,1727632242328,-500.0,0.00010994,2]
[339495808,1727632242338,-500.0,0.00010994,2]
[339495810,1727632242347,-618.62963751,0.00010994,2]
[339495812,1727632242357,-500.0,0.00010994,2]
[339495814,1727632242366,-500.0,0.00010994,2]
[339495816,1727632242376,-500.0,0.00010994,2]
[339495818,1727632242386,-500.0,0.00010994,2]
[339495820,1727632242395,-500.0,0.00010994,2]
[339495822,1727632242404,-500.0,0.00010994,2]
[339495824,1727632242415,-500.0,0.00010994,2]
[339495827,1727632242424,-501.01767125,0.00010994,2]
[339495829,1727632242435,-500.0,0.00010994,2]
[339495831,1727632242445,-500.0,0.00010994,2]
[339495833,1727632242454,-588.56,0.00010994,2]
[339495835,1727632242464,-592.43,0.00010994,2]
[339495837,1727632242474,-500.0,0.00010994,2]
[339495839,1727632242483,-500.0,0.00010994,2]
[339495841,1727632242493,-500.0,0.00010994,2]
[339495843,1727632242502,-500.0,0.00010994,2]
[339495845,1727632242511,-500.0,0.00010994,2]
[339495847,1727632242520,-500.0,0.00010994,2]
[339495849,1727632242530,-500.0,0.00010994,2]
[339495851,1727632242540,-500.0,0.00010994,2]
[339495853,1727632242550,-862.46,0.00010994,2]
[339495855,1727632242560,-500.0,0.00010995,2]
[339495857,1727632242569,-500.0,0.00010995,2]
[339495859,1727632242578,-500.0,0.00010995,2]
[339495861,1727632242587,-500.0,0.00010995,2]
[339495863,1727632242597,-500.0,0.00010995,2]
[339495864,1727632242607,-251.11293994,0.00010995,2]
[339495865,1727632242616,-1026.32,0.00010995,2]
[339495866,1727632242625,-1026.32,0.00010995,2]
[339495867,1727632242635,-376.26177342,0.00010995,2]
[339495868,1727632242645,-500.0,0.00010995,2]
[339495869,1727632242654,-500.0,0.00010995,2]
[339495870,1727632242665,-500.0,0.00010995,2]
[339495871,1727632242674,-500.0,0.00010995,2]
[339495872,1727632242683,-500.0,0.00010995,2]
[339495873,1727632242693,-500.0,0.00010995,2]
[339495874,1727632242702,-587.72,0.00010995,2]
[339495875,1727632242711,-587.72,0.00010995,2]
[339495876,1727632242720,-587.72,0.00010995,2]
[339495877,1727632242730,-587.72,0.00010995,2]
[339495878,1727632242739,-587.72,0.00010995,2]
[339495879,1727632242749,-500.0,0.00010995,2]
[339495880,1727632242759,-500.0,0.00010995,2]
[339495881,1727632242768,-500.0,0.00010995,2]
[339495882,1727632242778,-500.0,0.00010995,2]
[339495884,1727632242787,-500.0,0.00010995,2]
[339495885,1727632242796,-500.0,0.00010995,2]
[339495886,1727632242806,-500.0,0.00010995,2]
[339495887,1727632242815,-381.7,0.00010995,2]
[339495888,1727632242824,-500.0,0.00010995,2]
[339495889,1727632242834,-500.0,0.00010995,2]
[339495891,1727632242843,-500.0,0.00010995,2]
[339495893,1727632242853,-500.0,0.00010995,2]
[339495895,1727632242862,-500.0,0.00010995,2]
[339495897,1727632242871,-500.0,0.00010995,2]
[339495899,1727632242881,-500.0,0.00010995,2]
[339495900,1727632242891,-500.0,0.00010995,2]
[339495902,1727632242900,-500.0,0.00010995,2]
[339495904,1727632242910,-500.0,0.00010995,2]
[339495906,1727632242919,-500.0,0.00010995,2]
[339495908,1727632242928,-500.0,0.00010995,2]
[339495910,1727632242937,-500.0,0.00010995,2]
[339495911,1727632242947,-500.0,0.00010995,2]
[339495913,1727632242956,-500.0,0.00010995,2]
[339495915,1727632242966,-500.0,0.00010995,2]
[339495917,1727632242975,-500.0,0.00010995,2]
[339495919,1727632242985,-640.24594403,0.00010995,2]
[339495921,1727632242995,-588.56,0.00010995,2]
[339495923,1727632243004,-588.56,0.00010995,2]
[339495925,1727632243013,-592.43,0.00010995,2]
[339495927,1727632243023,-592.43,0.00010995,2]
[339495929,1727632243033,-500.0,0.00010995,2]
[339495931,1727632243043,-500.0,0.00010995,2]
[339495933,1727632243052,-184.93121931,0.00010995,2]
[339495934,1727632243061,-500.0,0.00010995,2]
[339495936,1727632243071,-500.0,0.00010995,2]
[339495938,1727632243080,-532.81950976,0.00010995,2]
[339495940,1727632243089,-500.0,0.00010995,2]
[339495942,1727632243099,-500.0,0.00010995,2]
[339495944,1727632243109,-645.62636733,0.00010995,2]
[339495946,1727632243118,-637.18106488,0.00010995,2]
[339495948,1727632243127,-862.46,0.00010995,2]
[339495950,1727632243136,-862.46,0.00010995,2]
[339495954,1727632243356,-1026.32,0.00010996,2]
[339495956,1727632243365,-1026.32,0.00010996,2]
[339495958,1727632243375,-1026.32,0.00010996,2]
[339495960,1727632243385,-1026.32,0.00010996,2]
[339495962,1727632243394,-1026.32,0.00010996,2]
[339495964,1727632243404,-500.0,0.00010996,2]
[339495966,1727632243414,-500.0,0.00010996,2]
[339495968,1727632243423,-500.0,0.00010996,2]
[339495970,1727632243433,-500.0,0.00010996,2]
[339495972,1727632243442,-526.44734806,0.00010996,2]
[339495974,1727632243452,-500.0,0.00010996,2]
[339495976,1727632243461,-500.0,0.00010996,2]
[339495978,1727632243471,-500.0,0.00010996,2]
[339495980,1727632243480,-500.0,0.00010996,2]
[339495982,1727632243490,-500.0,0.00010996,2]
[339495984,1727632243499,-587.72,0.00010996,2]
[339495986,1727632243509,-587.72,0.00010996,2]
[339495988,1727632243519,-587.72,0.00010996,2]
[339495990,1727632243528,-587.72,0.00010996,2]
[339495991,1727632243537,-500.0,0.00010996,2]
[339495993,1727632243547,-587.72,0.00010996,2]
[339495995,1727632243556,-222.13612958,0.00010996,2]
[339495997,1727632243566,-587.72,0.00010996,2]
[339495999,1727632243576,-587.72,0.00010996,2]
[339496001,1727632243586,-587.92537795,0.00010996,2]
[339496003,1727632243595,-500.0,0.00010996,2]
[339496005,1727632243605,-500.0,0.00010996,2]
[339496007,1727632243616,-500.0,0.00010996,2]
[339496009,1727632243625,-500.0,0.00010996,2]
[339496011,1727632243634,-500.0,0.00010996,2]
[339496013,1727632243643,-500.0,0.00010996,2]
[339496014,1727632243652,-501.91207939,0.00010996,2]
[339496016,1727632243661,-500.0,0.00010996,2]
[339496018,1727632243671,-500.0,0.00010996,2]
[339496020,1727632243680,-500.0,0.00010996,2]
[339496022,1727632243689,-500.0,0.00010996,2]
[339496024,1727632243698,-500.0,0.00010996,2]
[339496026,1727632243708,-504.80413338,0.00010996,2]
[339496028,1727632243717,-500.0,0.00010996,2]
[339496030,1727632243726,-500.0,0.00010996,2]
[339496032,1727632243735,-500.0,0.00010996,2]
[339496034,1727632243744,-500.0,0.00010996,2]
[339496035,1727632243753,-500.0,0.00010996,2]
[339496037,1727632243763,-500.0,0.00010996,2]
[339496039,1727632243772,-500.0,0.00010996,2]
[339496041,1727632243781,-500.0,0.00010996,2]
[339496043,1727632243791,-500.0,0.00010996,2]
[339496045,1727632243800,-500.0,0.00010996,2]
[339496047,1727632243809,-284.42948295,0.00010996,2]
[339496049,1727632243818,-500.0,0.00010996,2]
[339496051,1727632243827,-500.0,0.00010996,2]
[339496053,1727632243837,-500.0,0.00010996,2]
[339496055,1727632243846,-500.0,0.00010996,2]
[339496057,1727632243855,-270.04971157,0.00010996,2]
[339496059,1727632243865,-502.6541492,0.00010996,2]
[339496061,1727632243874,-588.56,0.00010996,2]
[339496063,1727632243883,-588.56,0.00010996,2]
[339496065,1727632243892,-588.56,0.00010996,2]
[339496066,1727632243902,-588.56,0.00010996,2]
[339496068,1727632243911,-588.56,0.00010996,2]
[339496070,1727632243921,-592.43,0.00010996,2]
[339496072,1727632243930,-592.43,0.00010996,2]
[339496074,1727632243939,-592.43,0.00010996,2]
[339496075,1727632243949,-592.43,0.00010996,2]
[339496077,1727632243958,-592.43,0.00010996,2]
[339496079,1727632243967,-501.66767409,0.00010996,2]
[339496081,1727632243977,-500.0,0.00010996,2]
[339496083,1727632243986,-500.0,0.00010996,2]
[339496085,1727632243995,-500.0,0.00010996,2]
[339496087,1727632244004,-500.0,0.00010996,2]
[339496089,1727632244014,-202.45056997,0.00010996,2]
[339496091,1727632244024,-862.46,0.00010996,2]
[339496093,1727632244034,-862.46,0.00010996,2]
[339496095,1727632244043,-862.46,0.00010996,2]
[339496097,1727632244052,-862.46,0.00010996,2]
[339496099,1727632244061,-862.46,0.00010996,2]
[339496101,1727632244071,-1026.32,0.00010997,2]
[339496103,1727632244080,-1026.32,0.00010997,2]
[339496105,1727632244090,-1026.32,0.00010997,2]
[339496107,1727632244099,-1026.32,0.00010997,2]
[339496109,1727632244109,-500.0,0.00010997,2]
[339496111,1727632244118,-500.0,0.00010997,2]
[339496113,1727632244127,-500.0,0.00010997,2]
[339496115,1727632244137,-500.0,0.00010997,2]
[339496117,1727632244149,-500.0,0.00010997,2]
[339496119,1727632244160,-500.0,0.00010997,2]
[339496121,1727632244169,-500.0,0.00010997,2]
[339496123,1727632244178,-500.0,0.00010997,2]
[339496125,1727632244188,-500.0,0.00010997,2]
[339496127,1727632244197,-619.1395629,0.00010997,2]
[339496129,1727632244206,-500.0,0.00010997,2]
[339496131,1727632244216,-500.0,0.00010997,2]
[339496133,1727632244226,-500.0,0.00010997,2]
[339496135,1727632244235,-430.060638,0.00010997,2]
[339496137,1727632244244,-500.0,0.00010997,2]
[339496139,1727632244253,-500.0,0.00010997,2]
[339496141,1727632244263,-500.0,0.00010997,2]
[339496142,1727632244272,-500.0,0.00010997,2]
[339496144,1727632244281,-588.56,0.00010997,2]
[339496146,1727632244290,-588.56,0.00010997,2]
[339496148,1727632244299,-588.56,0.00010997,2]
[339496150,1727632244309,-588.56,0.00010997,2]
[339496152,1727632244318,-592.43,0.00010997,2]
[339496154,1727632244328,-592.43,0.00010997,2]
[339496156,1727632244337,-592.43,0.00010997,2]
[339496158,1727632244346,-592.43,0.00010997,2]
[339496160,1727632244356,-862.46,0.00010997,2]
[339496162,1727632244366,-862.46,0.00010997,2]
[339496164,1727632244375,-862.46,0.00010997,2]
[339496166,1727632244384,-862.46,0.00010997,2]
[339496168,1727632244394,-11889.87448377,0.00010997,2]
[339496170,1727632244403,-1213.7631322,0.00010997,2]
[339496172,1727632244413,-8230.8199399,0.00010997,2]
[339496173,1727632244422,-31560.2805334,0.00010997,2]
[339496175,1727632244431,-12706.7992575,0.00010997,2]
[339496177,1727632244440,-500.0,0.00010997,2]
[339496178,1727632244449,-619.8052206,0.00010997,2]
[339496180,1727632244458,-1026.32,0.00010998,2]
[339496182,1727632244468,-1026.32,0.00010998,2]
[339496184,1727632244477,-1026.32,0.00010998,2]
[339496186,1727632244486,-1026.32,0.00010998,2]
[339496188,1727632244495,-1026.32,0.00010998,2]
[339496190,1727632244504,-1026.32,0.00010998,2]
[339496192,1727632244514,-154.13247358,0.00010998,2]
[339496193,1727632244523,-500.0,0.00010998,2]
[339496195,1727632244532,-500.0,0.00010998,2]
[339496197,1727632244541,-500.0,0.00010998,2]
[339496199,1727632244551,-500.0,0.00010998,2]
[339496201,1727632244560,-500.0,0.00010998,2]
[339496203,1727632244569,-500.0,0.00010998,2]
[339496205,1727632244578,-500.0,0.00010998,2]
[339496207,1727632244587,-500.0,0.00010998,2]
[339496208,1727632244597,-500.0,0.00010998,2]
[339496210,1727632244606,-500.0,0.00010998,2]
[339496212,1727632244615,-500.0,0.00010998,2]
[339496214,1727632244624,-500.0,0.00010998,2]
[339496216,1727632244633,-588.56,0.00010998,2]
[339496218,1727632244642,-588.56,0.00010998,2]
[339496219,1727632244651,-588.56,0.00010998,2]
[339496221,1727632244660,-588.56,0.00010998,2]
[339496223,1727632244668,-588.56,0.00010998,2]
[339496224,1727632244677,-588.56,0.00010998,2]
[339496225,1727632244687,-592.43,0.00010998,2]
[339496226,1727632244696,-592.43,0.00010998,2]
[339496227,1727632244705,-592.43,0.00010998,2]
[339496228,1727632244714,-592.43,0.00010998,2]
[339496229,1727632244724,-592.43,0.00010998,2]
[339496230,1727632244733,-592.43,0.00010998,2]
[339496231,1727632244742,-862.46,0.00010998,2]
[339496232,1727632244752,-862.46,0.00010998,2]
[339496233,1727632244762,-862.46,0.00010998,2]
[339496234,1727632244772,-862.46,0.00010998,2]
[339496235,1727632244781,-862.46,0.00010998,2]
[339496236,1727632244790,-862.46,0.00010998,2]
[339496237,1727632244799,-2844.0961304,0.00010998,2]
[339496238,1727632244809,-943.1481897,0.00010998,2]
[339496239,1727632244818,-1026.32,0.00010999,2]
[339496240,1727632244830,-1026.32,0.00010999,2]
[339496241,1727632244841,-1026.32,0.00010999,2]
[339496242,1727632244851,-1026.32,0.00010999,2]
[339496243,1727632244861,-1026.55643935,0.00010999,2]
[339496244,1727632244870,-500.0,0.00010999,2]
[339496245,1727632244880,-564.17108859,0.00010999,2]
[339496246,1727632244888,-240.28704062,0.00010999,2]
[339496247,1727632244897,-588.56,0.00010999,2]
[339496248,1727632244906,-588.56,0.00010999,2]
[339496249,1727632244916,-588.56,0.00010999,2]
[339496250,1727632244925,-588.56,0.00010999,2]
[339496251,1727632244934,-588.7304703,0.00010999,2]
[339496252,1727632244944,-592.43,0.00010999,2]
[339496253,1727632244954,-592.43,0.00010999,2]
[339496254,1727632244964,-592.43,0.00010999,2]
[339496255,1727632244974,-592.43,0.00010999,2]
[339496256,1727632244985,-592.63599441,0.00010999,2]
[339496257,1727632244995,-862.46,0.00010999,2]
[339496258,1727632245004,-862.46,0.00010999,2]
[339496259,1727632245014,-862.46,0.00010999,2]
[339496260,1727632245023,-862.46,0.00010999,2]
[339496261,1727632245032,-862.5070494,0.00010999,2]
[339496262,1727632245042,-151.0,0.00010999,2]
[339496263,1727632245051,-150.0,0.00010999,2]
[339496264,1727632245060,-1329.0,0.00010999,2]
[339496265,1727632245068,-500.0,0.00010999,2]
[339496266,1727632245078,-500.0,0.00010999,2]
[339496267,1727632245087,-500.0,0.00010999,2]
[339496268,1727632245097,-1263.0,0.00010999,2]
[339496269,1727632245107,-625.0,0.00010999,2]
[339496270,1727632245116,-448.0,0.00010999,2]
[339496271,1727632245126,-1296.0,0.00010999,2]
[339496272,1727632245137,-810.0,0.00010999,2]
[339496273,1727632245149,-150.0,0.00010999,2]
[339496274,1727632245158,-558.0,0.00010999,2]
[339496275,1727632245169,-366.472,0.00010999,2]
[339496276,1727632245178,-554.0,0.00010999,2]
[339496277,1727632245187,-1904.0,0.00010999,2]
[339496278,1727632245196,-1910.0,0.00010999,2]
[339496279,1727632245205,-3350.0,0.00010999,2]
[339496280,1727632245214,-807.0,0.00010999,2]
[339496281,1727632245225,-5872.0,0.00010999,2]
[339496282,1727632245235,-150.0,0.00010999,2]
[339496283,1727632245244,-9916.048,0.00010999,2]
[339496284,1727632245253,-150.0,0.00010999,2]
[339496285,1727632245263,-1148.0,0.00010999,2]
[339496286,1727632245272,-150.0,0.00010999,2]
[339496287,1727632245281,-1158869.40079409,0.00011,2]
[339496288,1727632245291,-4297078.48581552,0.00011,2]
[339496290,1727632245519,-51478.79553271,0.00011,2]
[339496305,1727632245709,-1290.84753398,0.00011,2]
[339496309,1727632245733,-1662.196,0.00011,2]
[339496311,1727632245744,-625.82,0.00011,2]
[339496330,1727632246047,-1081.0,0.00010999,2]
[339496331,1727632246059,-41603.13102919,0.00011,2]
[339496332,1727632246078,-1484.1466746,0.00011,2]
[339496333,1727632246088,-712.48905944,0.00011,2]
[339496334,1727632246179,-754.03,0.000106,2]
[339496335,1727632246191,-32133.22683206,0.00011,2]
[339496336,1727632246203,-975.28864811,0.00011,2]
[339496337,1727632246213,-6605.17992,0.00011,2]
[339496338,1727632246225,-57891.49658659,0.00011,2]
[339496339,1727632246238,-2091.0265999,0.00011,2]
[339496340,1727632246250,-327.39,0.00011,2]
[339496353,1727632248533,-70864.27890022,0.00011,2]
[339496354,1727632248547,-1033.05017563,0.00011,2]
[339496355,1727632248561,-677.99999947,0.00011,2]
[339496356,1727632248575,-451.34,0.00011,2]
[339496357,1727632248589,-27947.54575592,0.00011,2]
[339496358,1727632248604,-6559.35647437,0.00011,2]
[339496359,1727632248618,-2247.9574,0.00011,2]
[339496360,1727632248633,-23118.69514802,0.00011,2]
[339496361,1727632248647,-369.15130269,0.00011,2]
[339496362,1727632248666,-379.71008372,0.00011,2]
[339496363,1727632248681,-1104.89183922,0.00011,2]
[339496364,1727632248694,-2046.05543516,0.00011,2]
[339496365,1727632248707,-384.50318454,0.00011,2]
[339496368,1727632601309,302.25,8.63e-05,2]
[339496381,1727633168188,287.13,8.219e-05,2]
[339496383,1727633286104,500.0,0.0001,2]
[339496384,1727633286851,500.0,0.0001,2]
[339496385,1727633287632,500.0,0.0001,2]
[339496386,1727633288358,500.0,0.0001,2]
[339496387,1727633289099,325.3,0.0001,2]
[339496388,1727633344731,500.0,0.0001,3]
[339496391,1727633378299,526.7,9.926e-05,2]
[339496406,1727633431811,-250.0,0.00010027,2]
[339496407,1727633431821,-227.25,0.00010031,2]
[339496408,1727633431830,-87.08772582,0.0001005,2]
[339496409,1727633431842,-912.91227418,0.0001005,2]
[339496410,1727633431851,-1000.0,0.000101,3]
[339496411,1727633431860,-1600.0,0.000102,3]
[339496412,1727633431869,-2100.0,0.000103,3]
[339496413,1727633431879,-2600.0,0.000104,3]
[339496414,1727633431888,-287.13,0.00010477,2]
[339496415,1727633431898,-500.0,0.000105,3]
[339496416,1727633431907,-300.0,0.00010589,2]
[339496417,1727633431917,-268.57,0.0001059,2]
[339496418,1727633431926,-6056.69,0.0001059,2]
[339496419,1727633431935,-500.0,0.000106,3]
[339496420,1727633431945,-1000.0,0.00010696,2]
[339496421,1727633431954,-500.0,0.000107,3]
[339496422,1727633431963,-500.0,0.000108,3]
[339496423,1727633431972,-370.473,0.000109,2]
[339496424,1727633431981,-5870.0,0.000109,2]
[339496425,1727633431990,-150.0,0.000109,2]
[339496426,1727633432000,-1081.0,0.000109,2]
[339496427,1727633432009,-2357.7003,0.000109,2]
[339496428,1727633432021,-577.44870533,0.000109,2]
[339496429,1727633432033,-8241.93847938,0.000109,2]
[339496430,1727633432044,-3255.09037,0.000109,2]
[339496431,1727633432055,-1425.76150624,0.000109,2]
[339496432,1727633432066,-849.36959246,0.000109,2]